[Event "Early-Titled-Tuesday-Blitz-May-28-2024"]
[Site "Chess.com"]
[Date "2024.05.28"]
[Round "4"]
[White "ThetNaung291"]
[Black "Djager97"]
[Result "0-1"]
[WhiteElo "2351"]
[BlackElo "2540"]
[TimeControl "180+1"]
[EndTime "8:41:38 PDT"]
[Termination "Djager97 won by resignation"]

1. d4 {[%clk 0:02:59.5]} 1... d5 {[%clk 0:02:59.2]} 2. c4 {[%clk 0:02:58.4]}
2... e6 {[%clk 0:02:59.4]} 3. Nc3 {[%clk 0:02:57.5]} 3... Nf6 {[%clk 0:02:59]}
4. Nf3 {[%clk 0:02:55.3]} 4... c6 {[%clk 0:02:54.4]} 5. a4 {[%clk 0:02:48.2]}
5... Bb4 {[%clk 0:02:39.7]} 6. Bd2 {[%clk 0:02:40.5]} 6... O-O {[%clk
0:02:31.9]} 7. e3 {[%clk 0:02:40]} 7... Nbd7 {[%clk 0:02:30.8]} 8. Be2 {[%clk
0:02:34.2]} 8... dxc4 {[%clk 0:02:30.3]} 9. Bxc4 {[%clk 0:02:33.6]} 9... c5
{[%clk 0:02:20.3]} 10. O-O {[%clk 0:02:27.8]} 10... cxd4 {[%clk 0:02:19.6]} 11.
Nxd4 {[%clk 0:02:27.6]} 11... Nb6 {[%clk 0:02:14.6]} 12. Be2 {[%clk 0:02:25.7]}
12... e5 {[%clk 0:02:02.7]} 13. Nf3 {[%clk 0:02:23.8]} 13... e4 {[%clk
0:01:09.4]} 14. Nd4 {[%clk 0:02:22.3]} 14... a5 {[%clk 0:00:46.1]} 15. Ncb5
{[%clk 0:02:14]} 15... Nbd5 {[%clk 0:00:33.5]} 16. Rc1 {[%clk 0:02:11.5]} 16...
Bd7 {[%clk 0:00:31.9]} 17. Bxb4 {[%clk 0:02:04.9]} 17... axb4 {[%clk 0:00:25.2]}
18. Qb3 {[%clk 0:01:59.4]} 18... Qe7 {[%clk 0:00:17.3]} 19. Bc4 {[%clk
0:01:40.8]} 19... Qe5 {[%clk 0:00:16.1]} 20. Bxd5 {[%clk 0:01:36.4]} 20... Qxd5
{[%clk 0:00:15]} 21. Qxd5 {[%clk 0:01:08.4]} 21... Nxd5 {[%clk 0:00:14.4]} 22.
Rc5 {[%clk 0:01:07.7]} 22... Bc6 {[%clk 0:00:07.7]} 23. b3 {[%clk 0:01:03.6]}
23... Bxb5 {[%clk 0:00:05.6]} 24. Rxb5 {[%clk 0:00:59.5]} 24... Rfd8 {[%clk
0:00:02.3]} 25. h3 {[%clk 0:00:54]} 25... b6 {[%clk 0:00:01.5]} 26. Rc1 {[%clk
0:00:50.3]} 26... Nc3 {[%clk 0:00:01.4]} 27. Rxb4 {[%clk 0:00:18.2]} 27... Rxd4
{[%clk 0:00:01.9]} 28. exd4 {[%clk 0:00:10.8]} 28... Ne2+ {[%clk 0:00:02.2]} 29.
Kf1 {[%clk 0:00:10.8]} 29... Nxc1 {[%clk 0:00:03.1]} 30. Rxb6 {[%clk 0:00:11.7]}
30... g6 {[%clk 0:00:02.3]} 31. Ke1 {[%clk 0:00:10.3]} 31... Rc8 {[%clk
0:00:02.4]} 32. a5 {[%clk 0:00:09.7]} 32... Nd3+ {[%clk 0:00:02.7]} 33. Kd2
{[%clk 0:00:09.5]} 33... Rc1 {[%clk 0:00:02.4]} 34. b4 {[%clk 0:00:08.5]} 34...
Rb1 {[%clk 0:00:02.2]} 35. a6 {[%clk 0:00:07.7]} 35... Rb2+ {[%clk 0:00:01.5]}
36. Ke3 {[%clk 0:00:07.5]} 36... Nxf2 {[%clk 0:00:01.3]} 37. Rb8+ {[%clk
0:00:06.4]} 37... Kg7 {[%clk 0:00:01]} 38. a7 {[%clk 0:00:07.3]} 38... Nd1+
{[%clk 0:00:01]} 39. Kxe4 {[%clk 0:00:07.3]} 39... Nc3+ {[%clk 0:00:00.9]} 40.
Ke5 {[%clk 0:00:07.3]} 40... Re2+ {[%clk 0:00:01]} 41. Kd6 {[%clk 0:00:07.4]}
41... Re6+ {[%clk 0:00:01.1]} 42. Kc5 {[%clk 0:00:07.3]} 42... Ne4+ {[%clk
0:00:01]} 43. Kd5 {[%clk 0:00:07.4]} 43... Nc3+ {[%clk 0:00:01.1]} 44. Kc4
{[%clk 0:00:07.6]} 44... Rc6+ {[%clk 0:00:01.7]} 45. Kb3 {[%clk 0:00:07.6]}
45... Ra6 {[%clk 0:00:01]} 46. a8=Q {[%clk 0:00:07]} 46... Rxa8 {[%clk
0:00:01.9]} 47. Rxa8 {[%clk 0:00:07.9]} 47... Nb5 {[%clk 0:00:02.4]} 48. Ra5
{[%clk 0:00:08.1]} 48... Nxd4+ {[%clk 0:00:02.6]} 49. Kc4 {[%clk 0:00:08.9]}
49... Nc6 {[%clk 0:00:02.6]} 50. Rc5 {[%clk 0:00:09.5]} 50... Nd8 {[%clk
0:00:02]} 51. b5 {[%clk 0:00:10.4]} 51... Nb7 {[%clk 0:00:02.2]} 52. Rc7 {[%clk
0:00:10.6]} 52... Nd6+ {[%clk 0:00:02.3]} 53. Kb4 {[%clk 0:00:11.5]} 53... Kf6
{[%clk 0:00:02.2]} 54. Rc6 {[%clk 0:00:11.9]} 54... Ke5 {[%clk 0:00:02.3]} 55.
Kc5 {[%clk 0:00:12.5]} 55... Ne4+ {[%clk 0:00:02.3]} 56. Kb4 {[%clk 0:00:12.1]}
56... Kd5 {[%clk 0:00:02]} 57. Rc8 {[%clk 0:00:11.6]} 57... Nd6 {[%clk 0:00:02]}
58. Rd8 {[%clk 0:00:11.3]} 58... Ke6 {[%clk 0:00:02.6]} 59. b6 {[%clk
0:00:11.3]} 59... Nb7 {[%clk 0:00:01.4]} 60. Kb5 {[%clk 0:00:09.9]} 60... Nxd8
{[%clk 0:00:01.2]} 61. Ka6 {[%clk 0:00:08.5]} 61... Kd6 {[%clk 0:00:01.5]} 62.
Ka7 {[%clk 0:00:08.6]} 62... Kc6 {[%clk 0:00:01.6]} 63. b7 {[%clk 0:00:09.3]}
63... Nxb7 {[%clk 0:00:01.7]} 64. g4 {[%clk 0:00:08.9]} 64... Nd6 {[%clk
0:00:02.1]} 65. g5 {[%clk 0:00:09.1]} 65... Ne4 {[%clk 0:00:02.1]} 66. h4 {[%clk
0:00:09.9]} 66... Nxg5 {[%clk 0:00:02.5]} 67. hxg5 {[%clk 0:00:09.8]} 67... Kd5
{[%clk 0:00:03.2]} 68. Kb8 {[%clk 0:00:10.7]} 68... Ke5 {[%clk 0:00:04.1]} 69.
Kc7 {[%clk 0:00:11]} 69... Kf5 {[%clk 0:00:05]} 70. Kd7 {[%clk 0:00:11.4]} 70...
Kxg5 {[%clk 0:00:05.9]} 71. Ke7 {[%clk 0:00:12.3]} 71... f5 {[%clk 0:00:06.8]}
72. Kf7 {[%clk 0:00:12.2]} 72... f4 {[%clk 0:00:07.7]} 73. Kg7 {[%clk
0:00:13.1]} 73... f3 {[%clk 0:00:08.2]} 74. Kxh7 {[%clk 0:00:13.9]} 74... f2
{[%clk 0:00:08.8]} 0-1

[Event "Early-Titled-Tuesday-Blitz-May-28-2024"]
[Site "Chess.com"]
[Date "2024.05.28"]
[Round "4"]
[White "jumpingknight20"]
[Black "Fh2411"]
[Result "1-0"]
[WhiteElo "2779"]
[BlackElo "2551"]
[TimeControl "180+1"]
[EndTime "8:41:48 PDT"]
[Termination "jumpingknight20 won by resignation"]

1. e3 {[%clk 0:03:00.9]} 1... d5 {[%clk 0:02:59.2]} 2. Nf3 {[%clk 0:02:59.4]}
2... c6 {[%clk 0:02:57.4]} 3. b3 {[%clk 0:02:58.1]} 3... Bf5 {[%clk 0:02:56.6]}
4. Bb2 {[%clk 0:02:57.4]} 4... e6 {[%clk 0:02:56.8]} 5. Be2 {[%clk 0:02:55.7]}
5... h6 {[%clk 0:02:49.9]} 6. O-O {[%clk 0:02:55.4]} 6... Nf6 {[%clk 0:02:50.5]}
7. c4 {[%clk 0:02:54.8]} 7... Be7 {[%clk 0:02:50.2]} 8. d3 {[%clk 0:02:54.6]}
8... O-O {[%clk 0:02:49.8]} 9. Nbd2 {[%clk 0:02:54.8]} 9... a5 {[%clk
0:02:44.8]} 10. a3 {[%clk 0:02:54.6]} 10... Na6 {[%clk 0:02:39.1]} 11. Qc2
{[%clk 0:02:50.7]} 11... Bh7 {[%clk 0:02:37.8]} 12. Rfd1 {[%clk 0:02:43.5]}
12... Qb6 {[%clk 0:01:44]} 13. Rac1 {[%clk 0:01:45.5]} 13... Rfd8 {[%clk
0:01:40.4]} 14. h3 {[%clk 0:01:18.2]} 14... Qa7 {[%clk 0:01:07.8]} 15. Qb1
{[%clk 0:01:11.5]} 15... Qb8 {[%clk 0:00:58.9]} 16. Qa1 {[%clk 0:01:04.1]} 16...
Qa7 {[%clk 0:00:48.4]} 17. Ne5 {[%clk 0:00:54.4]} 17... Bf8 {[%clk 0:00:47.8]}
18. Ndf3 {[%clk 0:00:42.5]} 18... Nc5 {[%clk 0:00:40.8]} 19. Qa2 {[%clk
0:00:24.8]} 19... Qb6 {[%clk 0:00:38.6]} 20. Nd2 {[%clk 0:00:20.9]} 20... Ncd7
{[%clk 0:00:32.1]} 21. Nxd7 {[%clk 0:00:19.6]} 21... Nxd7 {[%clk 0:00:32.1]} 22.
Nf3 {[%clk 0:00:19.1]} 22... Nc5 {[%clk 0:00:29.6]} 23. Nd4 {[%clk 0:00:15.5]}
23... e5 {[%clk 0:00:24]} 24. Nf3 {[%clk 0:00:15.7]} 24... e4 {[%clk 0:00:20.9]}
25. dxe4 {[%clk 0:00:13.7]} 25... dxe4 {[%clk 0:00:21.8]} 26. Nd4 {[%clk
0:00:13.5]} 26... Nd3 {[%clk 0:00:21.2]} 27. Bxd3 {[%clk 0:00:13.5]} 27... exd3
{[%clk 0:00:22.1]} 28. Bc3 {[%clk 0:00:13.9]} 28... c5 {[%clk 0:00:19.1]} 29.
Nb5 {[%clk 0:00:12.8]} 29... Qe6 {[%clk 0:00:17.9]} 30. Qd2 {[%clk 0:00:12]}
30... Rd7 {[%clk 0:00:17.9]} 31. f3 {[%clk 0:00:12.3]} 31... b6 {[%clk
0:00:18.1]} 32. e4 {[%clk 0:00:12.6]} 32... Rad8 {[%clk 0:00:18.8]} 33. Qe3
{[%clk 0:00:12.3]} 33... f5 {[%clk 0:00:18.5]} 34. e5 {[%clk 0:00:10.6]} 34...
f4 {[%clk 0:00:19]} 35. Qxf4 {[%clk 0:00:09]} 35... Be7 {[%clk 0:00:19.6]} 36.
h4 {[%clk 0:00:08.8]} 36... Rf8 {[%clk 0:00:17.7]} 37. Qg3 {[%clk 0:00:09.1]}
37... Qf5 {[%clk 0:00:13.5]} 38. Rd2 {[%clk 0:00:08.1]} 38... Qh5 {[%clk
0:00:13.4]} 39. Qh3 {[%clk 0:00:07.8]} 39... Qf5 {[%clk 0:00:10.1]} 40. Qxf5
{[%clk 0:00:07.8]} 40... Bxf5 {[%clk 0:00:11]} 41. g3 {[%clk 0:00:07.9]} 41...
Be6 {[%clk 0:00:11.4]} 42. Kg2 {[%clk 0:00:08.3]} 42... g5 {[%clk 0:00:11]} 43.
hxg5 {[%clk 0:00:07.7]} 43... hxg5 {[%clk 0:00:11.9]} 44. Rh1 {[%clk 0:00:06.7]}
44... Kg7 {[%clk 0:00:11.4]} 45. Rh2 {[%clk 0:00:03.8]} 45... Kg6 {[%clk
0:00:11.6]} 46. g4 {[%clk 0:00:03.5]} 46... Rdd8 {[%clk 0:00:09.2]} 47. Nc7
{[%clk 0:00:03.4]} 47... Bc8 {[%clk 0:00:08]} 48. Nd5 {[%clk 0:00:02.9]} 48...
Rf7 {[%clk 0:00:07.6]} 49. Kg3 {[%clk 0:00:03.2]} 49... Rdf8 {[%clk 0:00:05]}
50. Rhf2 {[%clk 0:00:02.9]} 50... Bd8 {[%clk 0:00:05]} 51. Rxd3 {[%clk
0:00:03.5]} 51... Be6 {[%clk 0:00:05.9]} 52. Re3 {[%clk 0:00:03.9]} 52... Rh7
{[%clk 0:00:06]} 53. Nf6 {[%clk 0:00:04]} 53... Rh6 {[%clk 0:00:05.2]} 54. Rd3
{[%clk 0:00:04.4]} 54... Rfh8 {[%clk 0:00:05.1]} 55. Nh5 {[%clk 0:00:04.8]}
55... Kf7 {[%clk 0:00:04.3]} 56. Rd6 {[%clk 0:00:04.9]} 56... Be7 {[%clk
0:00:05.2]} 57. Rxb6 {[%clk 0:00:05]} 57... Rxh5 {[%clk 0:00:05]} 58. gxh5
{[%clk 0:00:04.8]} 58... Rxh5 {[%clk 0:00:05.9]} 59. Rh2 {[%clk 0:00:05.5]}
59... Rh4 {[%clk 0:00:03.6]} 60. Rxh4 {[%clk 0:00:05.6]} 60... gxh4+ {[%clk
0:00:04.5]} 61. Kh2 {[%clk 0:00:06.3]} 61... Bg5 {[%clk 0:00:04.8]} 62. Rb7+
{[%clk 0:00:06.9]} 62... Kg6 {[%clk 0:00:04.7]} 63. Be1 {[%clk 0:00:04.8]} 63...
Bf4+ {[%clk 0:00:05.6]} 64. Kg1 {[%clk 0:00:04.9]} 64... h3 {[%clk 0:00:06.4]}
65. Re7 {[%clk 0:00:03.3]} 65... Kf5 {[%clk 0:00:06]} 66. Rh7 {[%clk 0:00:03.1]}
66... Kxe5 {[%clk 0:00:06]} 67. Bc3+ {[%clk 0:00:03.3]} 67... Kd6 {[%clk
0:00:05.7]} 68. Rh5 {[%clk 0:00:03.4]} 68... Bg3 {[%clk 0:00:04.4]} 69. Bd2
{[%clk 0:00:02.5]} 69... Be5 {[%clk 0:00:03.7]} 70. Be3 {[%clk 0:00:03.1]} 70...
a4 {[%clk 0:00:01]} 71. f4 {[%clk 0:00:03.2]} 71... h2+ {[%clk 0:00:01.8]} 72.
Kxh2 {[%clk 0:00:02.9]} 72... axb3 {[%clk 0:00:02.1]} 73. fxe5+ {[%clk
0:00:03.1]} 73... Kc6 {[%clk 0:00:03]} 74. Bc1 {[%clk 0:00:03.9]} 1-0

[Event "Early-Titled-Tuesday-Blitz-May-28-2024"]
[Site "Chess.com"]
[Date "2024.05.28"]
[Round "4"]
[White "rhwr"]
[Black "aanshnerurkar"]
[Result "1/2-1/2"]
[WhiteElo "2313"]
[BlackElo "2487"]
[TimeControl "180+1"]
[EndTime "8:43:01 PDT"]
[Termination "Game drawn by 50-move rule"]

1. e4 {[%clk 0:03:00.9]} 1... c5 {[%clk 0:02:59.5]} 2. Nf3 {[%clk 0:02:59.9]}
2... d6 {[%clk 0:02:59.5]} 3. d4 {[%clk 0:02:59.9]} 3... cxd4 {[%clk 0:02:59.2]}
4. Nxd4 {[%clk 0:03:00.8]} 4... Nf6 {[%clk 0:02:59.6]} 5. Nc3 {[%clk 0:03:00.9]}
5... g6 {[%clk 0:03:00.1]} 6. Be2 {[%clk 0:03:00.5]} 6... Bg7 {[%clk 0:02:59.9]}
7. O-O {[%clk 0:03:00]} 7... O-O {[%clk 0:02:59.8]} 8. Be3 {[%clk 0:02:59.3]}
8... Nc6 {[%clk 0:02:59.8]} 9. Nb3 {[%clk 0:02:59.2]} 9... Be6 {[%clk
0:02:56.3]} 10. f4 {[%clk 0:02:56.8]} 10... Rc8 {[%clk 0:02:55.6]} 11. f5 {[%clk
0:02:56.8]} 11... Bd7 {[%clk 0:02:55.4]} 12. Kh1 {[%clk 0:02:43.1]} 12... Ne5
{[%clk 0:02:49.7]} 13. Nd4 {[%clk 0:02:27.9]} 13... a6 {[%clk 0:02:45.6]} 14.
Nf3 {[%clk 0:02:09.3]} 14... Nxf3 {[%clk 0:02:22]} 15. Bxf3 {[%clk 0:02:09]}
15... Bc6 {[%clk 0:02:21.9]} 16. fxg6 {[%clk 0:02:01.6]} 16... hxg6 {[%clk
0:02:19.7]} 17. Nd5 {[%clk 0:01:59.2]} 17... Nxd5 {[%clk 0:01:44.8]} 18. exd5
{[%clk 0:02:00.1]} 18... Bd7 {[%clk 0:01:44.8]} 19. c3 {[%clk 0:01:58.7]} 19...
b5 {[%clk 0:01:43.3]} 20. Bd4 {[%clk 0:01:57.7]} 20... Bxd4 {[%clk 0:01:38.8]}
21. Qxd4 {[%clk 0:01:57]} 21... Rc4 {[%clk 0:01:38.4]} 22. Qe3 {[%clk
0:01:53.6]} 22... e5 {[%clk 0:01:03.1]} 23. dxe6 {[%clk 0:01:51.2]} 23... Bxe6
{[%clk 0:01:03.1]} 24. Rad1 {[%clk 0:01:45.8]} 24... Rh4 {[%clk 0:00:55.6]} 25.
Bd5 {[%clk 0:01:21.6]} 25... Bxd5 {[%clk 0:00:42.2]} 26. Rxd5 {[%clk 0:01:20.9]}
26... Kg7 {[%clk 0:00:26.1]} 27. Qf2 {[%clk 0:01:20]} 27... Rc4 {[%clk
0:00:18.4]} 28. Qg3 {[%clk 0:01:13.5]} 28... Qe7 {[%clk 0:00:13.2]} 29. Qxd6
{[%clk 0:00:56.9]} 29... Qxd6 {[%clk 0:00:09.6]} 30. Rxd6 {[%clk 0:00:56.9]}
30... a5 {[%clk 0:00:09.9]} 31. Rd5 {[%clk 0:00:53.3]} 31... b4 {[%clk
0:00:05.9]} 32. Rxa5 {[%clk 0:00:50.5]} 32... bxc3 {[%clk 0:00:05.7]} 33. bxc3
{[%clk 0:00:51.4]} 33... Rxc3 {[%clk 0:00:05.8]} 34. Ra7 {[%clk 0:00:50.7]}
34... Kg8 {[%clk 0:00:04.9]} 35. a4 {[%clk 0:00:50.7]} 35... f5 {[%clk
0:00:03.8]} 36. a5 {[%clk 0:00:47.6]} 36... Ra3 {[%clk 0:00:02.7]} 37. h3 {[%clk
0:00:43.9]} 37... Rf7 {[%clk 0:00:02.7]} 38. Ra8+ {[%clk 0:00:42]} 38... Rf8
{[%clk 0:00:02.1]} 39. Ra6 {[%clk 0:00:42.1]} 39... Kg7 {[%clk 0:00:02.2]} 40.
Rb1 {[%clk 0:00:41.6]} 40... Rf6 {[%clk 0:00:01.8]} 41. Rb7+ {[%clk 0:00:40.4]}
41... Rf7 {[%clk 0:00:02]} 42. Rxf7+ {[%clk 0:00:39.1]} 42... Kxf7 {[%clk
0:00:02.2]} 43. Kh2 {[%clk 0:00:37.3]} 43... g5 {[%clk 0:00:02.5]} 44. Kg1
{[%clk 0:00:33.5]} 44... f4 {[%clk 0:00:01.9]} 45. Kf2 {[%clk 0:00:33.4]} 45...
Kg7 {[%clk 0:00:00.9]} 46. Ra7+ {[%clk 0:00:33.7]} 46... Kg6 {[%clk 0:00:00.6]}
47. a6 {[%clk 0:00:33.7]} 47... Kh6 {[%clk 0:00:00.8]} 48. Ra8 {[%clk
0:00:32.6]} 48... Kg6 {[%clk 0:00:01.2]} 49. a7 {[%clk 0:00:33.1]} 49... Kg7
{[%clk 0:00:01.6]} 50. Ke2 {[%clk 0:00:31.4]} 50... Kh7 {[%clk 0:00:01.8]} 51.
Kd2 {[%clk 0:00:30.9]} 51... Kg7 {[%clk 0:00:01.9]} 52. Kc2 {[%clk 0:00:30.2]}
52... Kh7 {[%clk 0:00:02.3]} 53. Kb2 {[%clk 0:00:30.4]} 53... Ra6 {[%clk
0:00:02.4]} 54. Kc3 {[%clk 0:00:29.7]} 54... Kg7 {[%clk 0:00:02.5]} 55. Kd4
{[%clk 0:00:29.9]} 55... Ra1 {[%clk 0:00:02.5]} 56. Ke5 {[%clk 0:00:29.7]} 56...
Ra5+ {[%clk 0:00:02.5]} 57. Ke4 {[%clk 0:00:29.5]} 57... Ra4+ {[%clk 0:00:02.7]}
58. Kf5 {[%clk 0:00:29.3]} 58... Ra5+ {[%clk 0:00:03]} 59. Kg4 {[%clk
0:00:29.4]} 59... Kh7 {[%clk 0:00:01]} 60. h4 {[%clk 0:00:26.9]} 60... gxh4
{[%clk 0:00:01.3]} 61. Kxh4 {[%clk 0:00:27.3]} 61... Kg7 {[%clk 0:00:01.4]} 62.
Kg4 {[%clk 0:00:27.5]} 62... Kh7 {[%clk 0:00:01.9]} 63. Kxf4 {[%clk 0:00:27.6]}
63... Kg7 {[%clk 0:00:02.2]} 64. g4 {[%clk 0:00:27.6]} 64... Kh7 {[%clk
0:00:02.3]} 65. g5 {[%clk 0:00:28]} 65... Kg7 {[%clk 0:00:02.6]} 66. Kg4 {[%clk
0:00:28.5]} 66... Ra1 {[%clk 0:00:02.6]} 67. Kf5 {[%clk 0:00:26.7]} 67... Kh7
{[%clk 0:00:02.3]} 68. Ke6 {[%clk 0:00:26.5]} 68... Kg7 {[%clk 0:00:02.3]} 69.
Kd7 {[%clk 0:00:26.5]} 69... Ra2 {[%clk 0:00:02.6]} 70. Kc7 {[%clk 0:00:26.7]}
70... Rc2+ {[%clk 0:00:02.5]} 71. Kb7 {[%clk 0:00:26.3]} 71... Rb2+ {[%clk
0:00:02.7]} 72. Ka6 {[%clk 0:00:26.1]} 72... Ra2+ {[%clk 0:00:02.7]} 73. Kb5
{[%clk 0:00:25.8]} 73... Rb2+ {[%clk 0:00:03.1]} 74. Kc6 {[%clk 0:00:25.6]}
74... Ra2 {[%clk 0:00:03.3]} 75. Kb6 {[%clk 0:00:24.5]} 75... Rb2+ {[%clk
0:00:03]} 76. Ka5 {[%clk 0:00:24.1]} 76... Ra2+ {[%clk 0:00:03.3]} 77. Kb4
{[%clk 0:00:23.7]} 77... Kh7 {[%clk 0:00:03.4]} 78. Kb3 {[%clk 0:00:21.7]} 78...
Ra6 {[%clk 0:00:03.3]} 79. Kc4 {[%clk 0:00:20.2]} 79... Kg7 {[%clk 0:00:03.2]}
80. Kb5 {[%clk 0:00:19.9]} 80... Ra1 {[%clk 0:00:03.3]} 81. Kb6 {[%clk
0:00:18.4]} 81... Rb1+ {[%clk 0:00:03.2]} 82. Kc7 {[%clk 0:00:17.9]} 82... Rc1+
{[%clk 0:00:03.4]} 83. Kd8 {[%clk 0:00:17.5]} 83... Rd1+ {[%clk 0:00:03.5]} 84.
Ke7 {[%clk 0:00:17.6]} 84... Re1+ {[%clk 0:00:03.8]} 85. Kd6 {[%clk 0:00:17.6]}
85... Rd1+ {[%clk 0:00:04.3]} 86. Ke5 {[%clk 0:00:18.5]} 86... Re1+ {[%clk
0:00:04.7]} 87. Kf4 {[%clk 0:00:19.4]} 87... Ra1 {[%clk 0:00:04.5]} 88. Kf5
{[%clk 0:00:18.4]} 88... Ra5+ {[%clk 0:00:04.4]} 89. Kg4 {[%clk 0:00:18.1]}
89... Ra4+ {[%clk 0:00:04.5]} 90. Kh5 {[%clk 0:00:18.1]} 90... Ra1 {[%clk
0:00:04.7]} 91. Kh4 {[%clk 0:00:16.9]} 91... Ra4+ {[%clk 0:00:04.4]} 92. Kg3
{[%clk 0:00:16.2]} 92... Ra3+ {[%clk 0:00:04.8]} 93. Kf4 {[%clk 0:00:16.3]}
93... Ra4+ {[%clk 0:00:05]} 94. Ke5 {[%clk 0:00:16.5]} 94... Ra5+ {[%clk
0:00:05.4]} 95. Kd4 {[%clk 0:00:16.7]} 95... Ra1 {[%clk 0:00:05.4]} 96. Kc5
{[%clk 0:00:16.8]} 96... Rc1+ {[%clk 0:00:05.4]} 97. Kb4 {[%clk 0:00:16.1]}
97... Rb1+ {[%clk 0:00:05.6]} 98. Kc3 {[%clk 0:00:15.3]} 98... Ra1 {[%clk
0:00:05.8]} 99. Kb2 {[%clk 0:00:15.5]} 99... Ra6 {[%clk 0:00:05.7]} 100. Kb3
{[%clk 0:00:13.4]} 100... Ra1 {[%clk 0:00:05.4]} 101. Kb2 {[%clk 0:00:13.7]}
101... Ra6 {[%clk 0:00:05.4]} 102. Kc2 {[%clk 0:00:14.1]} 102... Kh7 {[%clk
0:00:05.2]} 103. Kd2 {[%clk 0:00:15]} 103... Kg7 {[%clk 0:00:05]} 104. Ke3
{[%clk 0:00:15.1]} 104... Kh7 {[%clk 0:00:04.7]} 105. Ke4 {[%clk 0:00:15.3]}
105... Kg7 {[%clk 0:00:05]} 106. Kf5 {[%clk 0:00:15.6]} 106... Ra5+ {[%clk
0:00:04.6]} 107. Ke6 {[%clk 0:00:15.5]} 107... Ra6+ {[%clk 0:00:04.9]} 108. Ke7
{[%clk 0:00:16]} 108... Ra1 {[%clk 0:00:04.7]} 109. Kd7 {[%clk 0:00:14.6]}
109... Rd1+ {[%clk 0:00:04.4]} 110. Kc7 {[%clk 0:00:14.1]} 110... Rc1+ {[%clk
0:00:04.4]} 111. Kb8 {[%clk 0:00:14.2]} 111... Rb1+ {[%clk 0:00:04.6]} 112. Kc8
{[%clk 0:00:14.1]} 112... Rc1+ {[%clk 0:00:05]} 113. Kd8 {[%clk 0:00:14.2]}
113... Rd1+ {[%clk 0:00:05.4]} 114. Ke7 {[%clk 0:00:14.4]} 114... Re1+ {[%clk
0:00:05.3]} 115. Kd6 {[%clk 0:00:14.8]} 1/2-1/2